[Event "Early-Titled-Tuesday-Blitz-December-26-2023"]
[Site "Chess.com"]
[Date "2023.12.26"]
[Round "6"]
[White "Shuvalov"]
[Black "drillovsky"]
[Result "0-1"]
[WhiteElo "2525"]
[BlackElo "2385"]
[TimeControl "180+1"]
[EndTime "9:07:46 PST"]
[Termination "drillovsky won by resignation"]

1. d4 {[%clk 0:03:00.9]} 1... Nf6 {[%clk 0:02:58.9]} 2. c4 {[%clk 0:03:01]} 2...
e6 {[%clk 0:02:59.5]} 3. Nc3 {[%clk 0:03:01]} 3... Bb4 {[%clk 0:02:58.9]} 4. e3
{[%clk 0:03:01]} 4... c5 {[%clk 0:02:57.6]} 5. Ne2 {[%clk 0:03:00.4]} 5... cxd4
{[%clk 0:02:51.2]} 6. exd4 {[%clk 0:02:59.5]} 6... d5 {[%clk 0:02:51.7]} 7. a3
{[%clk 0:02:58.3]} 7... Be7 {[%clk 0:02:49.3]} 8. Nf4 {[%clk 0:02:57.7]} 8...
O-O {[%clk 0:02:46.3]} 9. cxd5 {[%clk 0:02:56.1]} 9... Nxd5 {[%clk 0:02:36.3]}
10. Bd3 {[%clk 0:02:53.7]} 10... Nc6 {[%clk 0:02:25.8]} 11. O-O {[%clk
0:02:42.4]} 11... Bf6 {[%clk 0:02:04.7]} 12. Nfxd5 {[%clk 0:02:18.2]} 12... exd5
{[%clk 0:02:03.3]} 13. Qh5 {[%clk 0:02:18.4]} 13... g6 {[%clk 0:02:03]} 14. Qxd5
{[%clk 0:02:18.3]} 14... Nxd4 {[%clk 0:01:48.9]} 15. Bh6 {[%clk 0:02:10.9]}
15... Re8 {[%clk 0:01:48.1]} 16. Rad1 {[%clk 0:02:08]} 16... Be6 {[%clk
0:00:59.8]} 17. Qxb7 {[%clk 0:01:56.7]} 17... a5 {[%clk 0:00:52.3]} 18. Ne4
{[%clk 0:01:48.3]} 18... Bh8 {[%clk 0:00:41.4]} 19. Bg5 {[%clk 0:01:34.1]} 19...
f6 {[%clk 0:00:23.5]} 20. Bf4 {[%clk 0:01:32.3]} 20... Bd5 {[%clk 0:00:22.8]}
21. Bc4 {[%clk 0:01:12.3]} 21... Bxc4 {[%clk 0:00:20.1]} 22. Nd6 {[%clk
0:01:12.6]} 22... Re7 {[%clk 0:00:15.8]} 23. Rxd4 {[%clk 0:00:47.6]} 23... Rxb7
{[%clk 0:00:15.2]} 24. Rxc4 {[%clk 0:00:47.7]} 24... Rc7 {[%clk 0:00:13.7]} 25.
Re4 {[%clk 0:00:46.6]} 25... Re7 {[%clk 0:00:12.1]} 26. Rc4 {[%clk 0:00:46.2]}
26... Rd7 {[%clk 0:00:12.3]} 27. Rd1 {[%clk 0:00:43.9]} 27... f5 {[%clk
0:00:12.5]} 28. b4 {[%clk 0:00:43.4]} 28... axb4 {[%clk 0:00:12.2]} 29. axb4
{[%clk 0:00:44.3]} 29... Rc8 {[%clk 0:00:11.3]} 30. Rc5 {[%clk 0:00:39.6]} 30...
Rxc5 {[%clk 0:00:05.6]} 31. bxc5 {[%clk 0:00:40.5]} 31... Qa8 {[%clk 0:00:05.6]}
32. h4 {[%clk 0:00:38.3]} 32... Bc3 {[%clk 0:00:05.2]} 33. Rb1 {[%clk
0:00:35.3]} 33... Qc6 {[%clk 0:00:05.1]} 34. Rb8+ {[%clk 0:00:34]} 34... Kg7
{[%clk 0:00:05.3]} 35. Rc8 {[%clk 0:00:34]} 35... Qd5 {[%clk 0:00:04.2]} 36.
Ne8+ {[%clk 0:00:30.5]} 36... Kf7 {[%clk 0:00:03.9]} 37. Nd6+ {[%clk 0:00:29.5]}
37... Rxd6 {[%clk 0:00:04.2]} 38. cxd6 {[%clk 0:00:27.3]} 38... Bf6 {[%clk
0:00:04.7]} 39. Rc7+ {[%clk 0:00:26]} 39... Ke6 {[%clk 0:00:04.2]} 40. Rxh7
{[%clk 0:00:24.5]} 40... Qd1+ {[%clk 0:00:04.3]} 41. Kh2 {[%clk 0:00:24.2]}
41... Qg4 {[%clk 0:00:05.2]} 42. g3 {[%clk 0:00:23.5]} 42... g5 {[%clk
0:00:04.8]} 43. hxg5 {[%clk 0:00:23]} 43... Bxg5 {[%clk 0:00:05.4]} 44. Bxg5
{[%clk 0:00:21.2]} 44... Qxg5 {[%clk 0:00:06.3]} 45. d7 {[%clk 0:00:21.5]} 45...
Kd6 {[%clk 0:00:03.5]} 46. Kg2 {[%clk 0:00:20.9]} 46... Kc7 {[%clk 0:00:03.6]}
47. Rh4 {[%clk 0:00:21.1]} 47... Kxd7 {[%clk 0:00:03.5]} 48. Rf4 {[%clk
0:00:21.2]} 48... Ke6 {[%clk 0:00:04]} 49. Rh4 {[%clk 0:00:21.6]} 49... Kf6
{[%clk 0:00:04]} 50. Rf4 {[%clk 0:00:21.4]} 50... Kg6 {[%clk 0:00:04.5]} 51. Rh4
{[%clk 0:00:21.2]} 51... Qe7 {[%clk 0:00:05.1]} 52. Kg1 {[%clk 0:00:20.3]} 52...
Qb7 {[%clk 0:00:05.3]} 53. Rf4 {[%clk 0:00:19.1]} 53... Qb1+ {[%clk 0:00:05.7]}
54. Kg2 {[%clk 0:00:19]} 54... Kg5 {[%clk 0:00:06.2]} 55. Rh4 {[%clk 0:00:19.1]}
55... Qc1 {[%clk 0:00:06.7]} 56. Rf4 {[%clk 0:00:18.4]} 56... Qxf4 {[%clk
0:00:06.9]} 57. gxf4+ {[%clk 0:00:19.3]} 57... Kxf4 {[%clk 0:00:07.5]} 58. Kg1
{[%clk 0:00:18.6]} 58... Kf3 {[%clk 0:00:07.6]} 59. Kf1 {[%clk 0:00:18.9]} 59...
f4 {[%clk 0:00:07.1]} 60. Ke1 {[%clk 0:00:17.9]} 60... Ke4 {[%clk 0:00:07.2]}
61. f3+ {[%clk 0:00:17.7]} 61... Kxf3 {[%clk 0:00:07.1]} 62. Kf1 {[%clk
0:00:18.4]} 62... Ke3 {[%clk 0:00:07.4]} 63. Ke1 {[%clk 0:00:18.6]} 63... f3
{[%clk 0:00:07.8]} 64. Kf1 {[%clk 0:00:18.9]} 64... f2 {[%clk 0:00:08.1]} 65.
Kg2 {[%clk 0:00:18.8]} 65... Ke2 {[%clk 0:00:09]} 66. Kh3 {[%clk 0:00:18.8]}
66... f1=Q+ {[%clk 0:00:09.9]} 67. Kh4 {[%clk 0:00:19]} 67... Qg2 {[%clk
0:00:09.7]} 0-1

[Event "Early-Titled-Tuesday-Blitz-December-26-2023"]
[Site "Chess.com"]
[Date "2023.12.26"]
[Round "6"]
[White "ljuks68"]
[Black "Pumpkin_in_moonlight"]
[Result "1-0"]
[WhiteElo "2515"]
[BlackElo "2315"]
[TimeControl "180+1"]
[EndTime "9:07:59 PST"]
[Termination "ljuks68 won by resignation"]

1. e4 {[%clk 0:03:00.9]} 1... c5 {[%clk 0:02:59.5]} 2. Nf3 {[%clk 0:03:00.8]}
2... Nc6 {[%clk 0:02:59.2]} 3. d4 {[%clk 0:03:01.4]} 3... cxd4 {[%clk 0:02:48]}
4. Nxd4 {[%clk 0:03:01.5]} 4... e5 {[%clk 0:02:28.4]} 5. Nb5 {[%clk 0:03:00.9]}
5... a6 {[%clk 0:02:19.8]} 6. Nd6+ {[%clk 0:03:00.4]} 6... Bxd6 {[%clk
0:02:19.4]} 7. Qxd6 {[%clk 0:03:01]} 7... Qf6 {[%clk 0:02:19]} 8. Qd2 {[%clk
0:03:00.5]} 8... Nge7 {[%clk 0:02:14.7]} 9. Nc3 {[%clk 0:03:00]} 9... O-O {[%clk
0:02:08.3]} 10. Bc4 {[%clk 0:02:59.2]} 10... Qg6 {[%clk 0:01:54.2]} 11. O-O
{[%clk 0:02:56.8]} 11... d5 {[%clk 0:01:50.2]} 12. Nxd5 {[%clk 0:02:32.1]} 12...
Qxe4 {[%clk 0:01:19.5]} 13. Nxe7+ {[%clk 0:02:29.4]} 13... Nxe7 {[%clk
0:01:18.6]} 14. Bd3 {[%clk 0:02:29.4]} 14... Qc6 {[%clk 0:01:06.1]} 15. Qe2
{[%clk 0:02:24.2]} 15... Ng6 {[%clk 0:00:49.2]} 16. Be4 {[%clk 0:02:09.1]} 16...
Qb6 {[%clk 0:00:42.3]} 17. b3 {[%clk 0:02:05.7]} 17... Re8 {[%clk 0:00:32.1]}
18. Be3 {[%clk 0:01:58.2]} 18... Qc7 {[%clk 0:00:26]} 19. c4 {[%clk 0:01:52.2]}
19... Be6 {[%clk 0:00:24.6]} 20. Qf3 {[%clk 0:01:49.3]} 20... Nh4 {[%clk
0:00:19.1]} 21. Bxh7+ {[%clk 0:01:33.8]} 21... Kxh7 {[%clk 0:00:18.8]} 22. Qh5+
{[%clk 0:01:34]} 22... Kg8 {[%clk 0:00:18.5]} 23. Qxh4 {[%clk 0:01:34.4]} 23...
Rad8 {[%clk 0:00:15.7]} 24. Qg3 {[%clk 0:01:31.6]} 24... Rd3 {[%clk 0:00:12.5]}
25. Rad1 {[%clk 0:01:30.5]} 25... Red8 {[%clk 0:00:12.6]} 26. Rxd3 {[%clk
0:01:30.5]} 26... Rxd3 {[%clk 0:00:12.9]} 27. h3 {[%clk 0:00:57.7]} 27... f5
{[%clk 0:00:12.6]} 28. Qg6 {[%clk 0:00:57.8]} 28... Qf7 {[%clk 0:00:09.6]} 29.
Qxf7+ {[%clk 0:00:43.9]} 29... Kxf7 {[%clk 0:00:10.5]} 30. g3 {[%clk 0:00:44.2]}
30... e4 {[%clk 0:00:09.3]} 31. Rc1 {[%clk 0:00:41.2]} 31... Bd7 {[%clk
0:00:07.1]} 32. h4 {[%clk 0:00:39.3]} 32... g6 {[%clk 0:00:06.7]} 33. Kf1 {[%clk
0:00:39.6]} 33... Ke6 {[%clk 0:00:06.8]} 34. Ke2 {[%clk 0:00:39.8]} 34... Bc6
{[%clk 0:00:06.7]} 35. Rc2 {[%clk 0:00:37.7]} 35... Rd7 {[%clk 0:00:06.6]} 36.
Bb6 {[%clk 0:00:33.8]} 36... Kf7 {[%clk 0:00:06.1]} 37. Rc3 {[%clk 0:00:31.1]}
37... Ke6 {[%clk 0:00:06.2]} 38. Ke3 {[%clk 0:00:31.1]} 38... Kf7 {[%clk
0:00:06.3]} 39. Bd4 {[%clk 0:00:30.8]} 39... Ke6 {[%clk 0:00:06.4]} 40. b4
{[%clk 0:00:29.7]} 40... Kf7 {[%clk 0:00:05.6]} 41. Rc2 {[%clk 0:00:29.7]} 41...
Ke6 {[%clk 0:00:05.9]} 42. Rb2 {[%clk 0:00:30.1]} 42... Kf7 {[%clk 0:00:06.1]}
43. b5 {[%clk 0:00:29.6]} 43... axb5 {[%clk 0:00:06.2]} 44. cxb5 {[%clk
0:00:30]} 44... Bd5 {[%clk 0:00:06.7]} 45. a4 {[%clk 0:00:30.2]} 45... Bc4
{[%clk 0:00:05.8]} 46. Rb4 {[%clk 0:00:24.2]} 46... Bd3 {[%clk 0:00:04.5]} 47.
Rb3 {[%clk 0:00:23.3]} 47... Rd8 {[%clk 0:00:03.7]} 48. Ra3 {[%clk 0:00:20.1]}
48... Ra8 {[%clk 0:00:03.7]} 49. Bc5 {[%clk 0:00:16.5]} 49... Bc4 {[%clk
0:00:03.1]} 50. Kd4 {[%clk 0:00:16.5]} 50... Bd3 {[%clk 0:00:03.1]} 51. Ke5
{[%clk 0:00:15.8]} 51... Re8+ {[%clk 0:00:02.7]} 52. Kf4 {[%clk 0:00:16]} 52...
Rc8 {[%clk 0:00:03.3]} 53. Rc3 {[%clk 0:00:15.4]} 53... b6 {[%clk 0:00:02.5]}
54. Bd4 {[%clk 0:00:14.3]} 54... Rxc3 {[%clk 0:00:02.8]} 55. Bxc3 {[%clk
0:00:14.8]} 55... Bc2 {[%clk 0:00:03.5]} 56. a5 {[%clk 0:00:14.8]} 56... bxa5
{[%clk 0:00:03]} 57. Bxa5 {[%clk 0:00:15.2]} 57... Ba4 {[%clk 0:00:02.7]} 58. b6
{[%clk 0:00:15.6]} 58... Bc6 {[%clk 0:00:03]} 59. Bb4 {[%clk 0:00:15.8]} 59...
Bb7 {[%clk 0:00:03.3]} 60. h5 {[%clk 0:00:14.5]} 60... gxh5 {[%clk 0:00:02.5]}
61. Kxf5 {[%clk 0:00:14.7]} 61... Kg7 {[%clk 0:00:02.2]} 62. Kg5 {[%clk
0:00:15]} 62... Kf7 {[%clk 0:00:02.6]} 63. Kxh5 {[%clk 0:00:15.2]} 63... Ke6
{[%clk 0:00:03.2]} 64. Bd2 {[%clk 0:00:14.5]} 64... Kf5 {[%clk 0:00:03.5]} 65.
Be3 {[%clk 0:00:14.5]} 65... Ke5 {[%clk 0:00:03.6]} 66. Kg5 {[%clk 0:00:14.3]}
66... Ke6 {[%clk 0:00:03.8]} 67. g4 {[%clk 0:00:13.4]} 67... Kf7 {[%clk
0:00:03.8]} 68. Kf5 {[%clk 0:00:13.6]} 68... Bc8+ {[%clk 0:00:03.8]} 69. Kf4
{[%clk 0:00:13]} 69... Bb7 {[%clk 0:00:04.2]} 70. g5 {[%clk 0:00:12]} 70... Kg6
{[%clk 0:00:04.5]} 71. Ke5 {[%clk 0:00:12.6]} 71... Bc6 {[%clk 0:00:03.9]} 72.
Kd6 {[%clk 0:00:13]} 72... Ba8 {[%clk 0:00:03.7]} 73. Kc7 {[%clk 0:00:13.5]}
73... Bd5 {[%clk 0:00:03.8]} 74. b7 {[%clk 0:00:14]} 1-0

[Event "Early-Titled-Tuesday-Blitz-December-26-2023"]
[Site "Chess.com"]
[Date "2023.12.26"]
[Round "6"]
[White "Ramla2020"]
[Black "Mikhail_Golubev"]
[Result "0-1"]
[WhiteElo "2460"]
[BlackElo "2620"]
[TimeControl "180+1"]
[EndTime "9:08:02 PST"]
[Termination "Mikhail_Golubev won by checkmate"]

1. c4 {[%clk 0:03:00.9]} 1... g6 {[%clk 0:02:59.5]} 2. g3 {[%clk 0:03:00.2]}
2... Bg7 {[%clk 0:03:00.1]} 3. Bg2 {[%clk 0:03:01.1]} 3... e5 {[%clk 0:03:00.1]}
4. Nc3 {[%clk 0:03:00.9]} 4... Nc6 {[%clk 0:03:00.6]} 5. e3 {[%clk 0:03:01.1]}
5... d6 {[%clk 0:02:58.8]} 6. Nge2 {[%clk 0:03:00]} 6... Nf6 {[%clk 0:02:58.3]}
7. d4 {[%clk 0:02:57.3]} 7... O-O {[%clk 0:02:56.5]} 8. O-O {[%clk 0:02:56.2]}
8... exd4 {[%clk 0:02:54.9]} 9. exd4 {[%clk 0:02:54.6]} 9... Re8 {[%clk
0:02:53.7]} 10. h3 {[%clk 0:02:54.2]} 10... Bf5 {[%clk 0:02:51.1]} 11. g4 {[%clk
0:02:52.2]} 11... Bd7 {[%clk 0:02:50.6]} 12. Be3 {[%clk 0:02:51.5]} 12... h5
{[%clk 0:02:44.9]} 13. g5 {[%clk 0:02:40.1]} 13... Nh7 {[%clk 0:02:43.5]} 14.
Qd2 {[%clk 0:02:40.3]} 14... Qc8 {[%clk 0:02:29.4]} 15. Kh2 {[%clk 0:02:39.8]}
15... Ne7 {[%clk 0:02:29.4]} 16. Nf4 {[%clk 0:02:31.8]} 16... Nf5 {[%clk
0:02:24.2]} 17. Rae1 {[%clk 0:02:19.2]} 17... Nxg5 {[%clk 0:00:51.4]} 18. Nfd5
{[%clk 0:02:18.6]} 18... Nxe3 {[%clk 0:00:45.2]} 19. fxe3 {[%clk 0:02:19.5]}
19... Bxh3 {[%clk 0:00:37.2]} 20. e4 {[%clk 0:02:14.2]} 20... Bxg2 {[%clk
0:00:22.3]} 21. Qxg2 {[%clk 0:02:15.1]} 21... c6 {[%clk 0:00:22.5]} 22. Qxg5
{[%clk 0:02:03.7]} 22... cxd5 {[%clk 0:00:22.4]} 23. Nxd5 {[%clk 0:02:04.6]}
23... Qxc4 {[%clk 0:00:19.4]} 24. Nf6+ {[%clk 0:01:44.9]} 24... Bxf6 {[%clk
0:00:18.8]} 25. Qxf6 {[%clk 0:01:45.1]} 25... Rf8 {[%clk 0:00:14.1]} 26. Rf2
{[%clk 0:01:37.7]} 26... Qe6 {[%clk 0:00:13.3]} 27. Qg5 {[%clk 0:01:32.7]} 27...
Kg7 {[%clk 0:00:13.3]} 28. Ref1 {[%clk 0:01:27.3]} 28... f6 {[%clk 0:00:13.2]}
29. Qg3 {[%clk 0:01:24.5]} 29... Rf7 {[%clk 0:00:13.2]} 30. e5 {[%clk
0:01:23.1]} 30... dxe5 {[%clk 0:00:12.3]} 31. dxe5 {[%clk 0:01:23.4]} 31... f5
{[%clk 0:00:12.7]} 32. Qf4 {[%clk 0:01:20.6]} 32... Kh7 {[%clk 0:00:12.4]} 33.
Rd2 {[%clk 0:01:20]} 33... Re8 {[%clk 0:00:12.1]} 34. Re1 {[%clk 0:01:17.3]}
34... Rd7 {[%clk 0:00:12.2]} 35. Rxd7+ {[%clk 0:01:05]} 35... Qxd7 {[%clk
0:00:11.6]} 36. Re2 {[%clk 0:01:05.9]} 36... Re6 {[%clk 0:00:11.6]} 37. b3
{[%clk 0:01:04.2]} 37... Qe7 {[%clk 0:00:11.7]} 38. Qd4 {[%clk 0:01:02.8]} 38...
Qg5 {[%clk 0:00:09.9]} 39. Rg2 {[%clk 0:00:59.9]} 39... Qe7 {[%clk 0:00:09]} 40.
Re2 {[%clk 0:01:00]} 40... a6 {[%clk 0:00:08.5]} 41. a4 {[%clk 0:00:59.2]} 41...
Kg7 {[%clk 0:00:08.6]} 42. Kh1 {[%clk 0:00:58.3]} 42... Kh7 {[%clk 0:00:09]} 43.
Qf4 {[%clk 0:00:57.4]} 43... Kg7 {[%clk 0:00:09.2]} 44. Qd4 {[%clk 0:00:54.6]}
44... Qf7 {[%clk 0:00:08.5]} 45. Qf4 {[%clk 0:00:53.4]} 45... Qe8 {[%clk
0:00:08.4]} 46. Qd4 {[%clk 0:00:51.9]} 46... Qe7 {[%clk 0:00:08.7]} 47. Qf4
{[%clk 0:00:51.8]} 47... Kh7 {[%clk 0:00:09]} 48. Qd4 {[%clk 0:00:51.4]} 48...
Rc6 {[%clk 0:00:09.5]} 49. Qd5 {[%clk 0:00:49.3]} 49... Qe6 {[%clk 0:00:09.1]}
50. Qd4 {[%clk 0:00:49]} 50... Rc7 {[%clk 0:00:09.3]} 51. Kg2 {[%clk 0:00:45.4]}
51... Rd7 {[%clk 0:00:09.5]} 52. Qf4 {[%clk 0:00:45.6]} 52... Qc6+ {[%clk
0:00:09.4]} 53. Kh2 {[%clk 0:00:45.4]} 53... Qe6 {[%clk 0:00:10.1]} 54. Rg2
{[%clk 0:00:44.1]} 54... Rd5 {[%clk 0:00:09.5]} 55. Re2 {[%clk 0:00:43.9]} 55...
Rd3 {[%clk 0:00:09.3]} 56. Qc4 {[%clk 0:00:40.3]} 56... Qxc4 {[%clk 0:00:08.2]}
57. bxc4 {[%clk 0:00:41.2]} 57... Rd8 {[%clk 0:00:08.5]} 58. e6 {[%clk
0:00:39.4]} 58... Re8 {[%clk 0:00:08.6]} 59. e7 {[%clk 0:00:40.3]} 59... Kg7
{[%clk 0:00:08.6]} 60. Kg3 {[%clk 0:00:34.8]} 60... Kf7 {[%clk 0:00:08.3]} 61.
Kf4 {[%clk 0:00:35.7]} 61... Rxe7 {[%clk 0:00:08.9]} 62. Rd2 {[%clk 0:00:34.9]}
62... Re4+ {[%clk 0:00:09]} 63. Kf3 {[%clk 0:00:34.9]} 63... Rxc4 {[%clk
0:00:08.7]} 64. Rd7+ {[%clk 0:00:35.3]} 64... Kf6 {[%clk 0:00:09.3]} 65. Rxb7
{[%clk 0:00:36.2]} 65... Rxa4 {[%clk 0:00:08.9]} 66. Rb6+ {[%clk 0:00:12.1]}
66... Kg5 {[%clk 0:00:08.9]} 67. Rb1 {[%clk 0:00:11.5]} 67... h4 {[%clk
0:00:08.8]} 68. Ke2 {[%clk 0:00:12.4]} 68... Kf6 {[%clk 0:00:08.4]} 69. Rg1
{[%clk 0:00:13.3]} 69... Re4+ {[%clk 0:00:08.4]} 70. Kf3 {[%clk 0:00:13.2]}
70... Re6 {[%clk 0:00:09.3]} 71. Rb1 {[%clk 0:00:13.8]} 71... g5 {[%clk
0:00:09.4]} 72. Rh1 {[%clk 0:00:14.7]} 72... g4+ {[%clk 0:00:09.6]} 73. Kf4
{[%clk 0:00:14.7]} 73... Re4# {[%clk 0:00:08.7]} 0-1

[Event "Early-Titled-Tuesday-Blitz-December-26-2023"]
[Site "Chess.com"]
[Date "2023.12.26"]
[Round "6"]
[White "rquery98"]
[Black "Kacparov"]
[Result "1/2-1/2"]
[WhiteElo "2767"]
[BlackElo "2957"]
[TimeControl "180+1"]
[EndTime "9:08:09 PST"]
[Termination "Game drawn by repetition"]

1. Nf3 {[%clk 0:03:00.9]} 1... d5 {[%clk 0:02:59.7]} 2. g3 {[%clk 0:03:01.1]}
2... c6 {[%clk 0:02:59.7]} 3. Bg2 {[%clk 0:03:01.6]} 3... Bg4 {[%clk 0:03:00.4]}
4. O-O {[%clk 0:03:00.7]} 4... Nd7 {[%clk 0:03:00.7]} 5. d4 {[%clk 0:03:00.6]}
5... Ngf6 {[%clk 0:03:00.8]} 6. Nbd2 {[%clk 0:03:00.9]} 6... e6 {[%clk
0:03:00.9]} 7. Re1 {[%clk 0:03:01.5]} 7... Be7 {[%clk 0:02:56.6]} 8. e4 {[%clk
0:03:00.9]} 8... dxe4 {[%clk 0:02:56.6]} 9. Nxe4 {[%clk 0:03:01.8]} 9... O-O
{[%clk 0:02:55.5]} 10. c3 {[%clk 0:02:59.6]} 10... Nxe4 {[%clk 0:02:50.5]} 11.
Rxe4 {[%clk 0:03:00.5]} 11... Nf6 {[%clk 0:02:50.6]} 12. Re1 {[%clk 0:03:00.2]}
12... Qb6 {[%clk 0:02:45.7]} 13. Qb3 {[%clk 0:02:57.5]} 13... Bxf3 {[%clk
0:02:43.9]} 14. Bxf3 {[%clk 0:02:57.5]} 14... Rfd8 {[%clk 0:02:40.2]} 15. Bf4
{[%clk 0:02:41.4]} 15... Nd5 {[%clk 0:02:39.4]} 16. Bd2 {[%clk 0:02:29.8]} 16...
h6 {[%clk 0:02:33.6]} 17. Rad1 {[%clk 0:02:25.2]} 17... Qxb3 {[%clk 0:02:25.5]}
18. axb3 {[%clk 0:02:25]} 18... a5 {[%clk 0:02:17.4]} 19. Ra1 {[%clk 0:02:21.4]}
19... Rdc8 {[%clk 0:02:17.2]} 20. Ra2 {[%clk 0:02:06.5]} 20... Kf8 {[%clk
0:02:13.7]} 21. Rea1 {[%clk 0:02:05.6]} 21... b6 {[%clk 0:02:04.4]} 22. b4
{[%clk 0:02:02.3]} 22... Rab8 {[%clk 0:02:00.2]} 23. bxa5 {[%clk 0:01:23.8]}
23... bxa5 {[%clk 0:02:01.1]} 24. Bc1 {[%clk 0:01:19.5]} 24... Bd8 {[%clk
0:01:59.8]} 25. Kf1 {[%clk 0:01:16.6]} 25... Ke8 {[%clk 0:01:55.4]} 26. Ke2
{[%clk 0:01:16.2]} 26... Kd7 {[%clk 0:01:55.7]} 27. Kd3 {[%clk 0:01:16.2]} 27...
Bc7 {[%clk 0:01:52.7]} 28. Bd2 {[%clk 0:01:14.7]} 28... Rb7 {[%clk 0:01:46.3]}
29. Bd1 {[%clk 0:01:00.6]} 29... Rcb8 {[%clk 0:01:45.9]} 30. Bc1 {[%clk
0:01:01.2]} 30... g5 {[%clk 0:01:41.5]} 31. Ra4 {[%clk 0:00:40.8]} 31... f5
{[%clk 0:01:41.3]} 32. Rc4 {[%clk 0:00:38.7]} 32... f4 {[%clk 0:01:20.2]} 33.
Ke2 {[%clk 0:00:20.6]} 33... Rf8 {[%clk 0:01:19.8]} 34. Ba4 {[%clk 0:00:17.3]}
34... Ne7 {[%clk 0:01:19.9]} 35. Bc2 {[%clk 0:00:17.4]} 35... Bb6 {[%clk
0:01:11.3]} 36. b3 {[%clk 0:00:15.2]} 36... Rf6 {[%clk 0:01:08.6]} 37. Ba3
{[%clk 0:00:15.5]} 37... Nd5 {[%clk 0:01:07.6]} 38. Bc5 {[%clk 0:00:16.2]} 38...
Bd8 {[%clk 0:01:03.1]} 39. Be4 {[%clk 0:00:14]} 39... h5 {[%clk 0:01:02.5]} 40.
Bc2 {[%clk 0:00:13.6]} 40... g4 {[%clk 0:01:01.8]} 41. Ba3 {[%clk 0:00:11.8]}
41... fxg3 {[%clk 0:00:59.8]} 42. hxg3 {[%clk 0:00:11.6]} 42... Rf3 {[%clk
0:00:59.6]} 43. Bb2 {[%clk 0:00:10.9]} 43... Bc7 {[%clk 0:00:48.4]} 44. Ra3
{[%clk 0:00:09]} 44... Rb8 {[%clk 0:00:48.4]} 45. Be4 {[%clk 0:00:09.4]} 45...
Rf7 {[%clk 0:00:46.3]} 46. Bc1 {[%clk 0:00:09.3]} 46... Rbf8 {[%clk 0:00:44.6]}
47. Be3 {[%clk 0:00:06.5]} 47... Rb8 {[%clk 0:00:41.2]} 48. Bd2 {[%clk
0:00:04.9]} 48... Rff8 {[%clk 0:00:37.3]} 49. Be1 {[%clk 0:00:05.3]} 49... Rf6
{[%clk 0:00:35.8]} 50. Bg2 {[%clk 0:00:05.9]} 50... Rb5 {[%clk 0:00:34.9]} 51.
Be4 {[%clk 0:00:06.2]} 51... Bd6 {[%clk 0:00:35.3]} 52. Ra1 {[%clk 0:00:05.8]}
52... Rxb3 {[%clk 0:00:35.7]} 53. Rxa5 {[%clk 0:00:04.6]} 53... Rb2+ {[%clk
0:00:36.3]} 54. Kd3 {[%clk 0:00:03.9]} 54... Rb7 {[%clk 0:00:35.3]} 55. Ra6
{[%clk 0:00:04.2]} 55... Rc7 {[%clk 0:00:30.9]} 56. Rca4 {[%clk 0:00:04.8]}
56... Rf8 {[%clk 0:00:30.7]} 57. Ra7 {[%clk 0:00:05.3]} 57... Rb8 {[%clk
0:00:29.9]} 58. Rxc7+ {[%clk 0:00:05.6]} 58... Bxc7 {[%clk 0:00:30.8]} 59. Bxd5
{[%clk 0:00:06.2]} 59... exd5 {[%clk 0:00:30.1]} 60. Ra2 {[%clk 0:00:07.1]}
60... Re8 {[%clk 0:00:29.4]} 61. Bd2 {[%clk 0:00:07.3]} 61... Rf8 {[%clk
0:00:28.9]} 62. Be3 {[%clk 0:00:07.7]} 62... Rb8 {[%clk 0:00:26.2]} 63. Ra1
{[%clk 0:00:07.3]} 63... Bd6 {[%clk 0:00:25.4]} 64. Rh1 {[%clk 0:00:07.8]} 64...
Rh8 {[%clk 0:00:25.5]} 65. c4 {[%clk 0:00:08.3]} 65... Ke6 {[%clk 0:00:25.3]}
66. cxd5+ {[%clk 0:00:08.7]} 66... cxd5 {[%clk 0:00:26.2]} 67. Rb1 {[%clk
0:00:08.8]} 67... Bc7 {[%clk 0:00:24.7]} 68. Rb5 {[%clk 0:00:09.1]} 68... Ra8
{[%clk 0:00:23.4]} 69. Rc5 {[%clk 0:00:09.4]} 69... Ra3+ {[%clk 0:00:23.5]} 70.
Ke2 {[%clk 0:00:10]} 70... Ra2+ {[%clk 0:00:23.7]} 71. Kd3 {[%clk 0:00:10.3]}
71... Ra3+ {[%clk 0:00:23.5]} 72. Ke2 {[%clk 0:00:10.3]} 72... Bd6 {[%clk
0:00:22.7]} 73. Rc8 {[%clk 0:00:10.3]} 73... Ra2+ {[%clk 0:00:22.6]} 74. Kd3
{[%clk 0:00:10.3]} 74... Ra1 {[%clk 0:00:18.5]} 75. Rh8 {[%clk 0:00:09.9]} 75...
Rh1 {[%clk 0:00:18.6]} 76. Rh6+ {[%clk 0:00:10.5]} 76... Kd7 {[%clk 0:00:19]}
77. Rg6 {[%clk 0:00:10.9]} 77... Be7 {[%clk 0:00:19.1]} 78. Rh6 {[%clk
0:00:10.6]} 78... Rh3 {[%clk 0:00:19.4]} 79. Ke2 {[%clk 0:00:10.4]} 79... h4
{[%clk 0:00:19.7]} 80. gxh4 {[%clk 0:00:11.3]} 80... Rxh4 {[%clk 0:00:20]} 81.
Rg6 {[%clk 0:00:11.6]} 81... Bd6 {[%clk 0:00:20]} 82. Kf1 {[%clk 0:00:11.5]}
82... Rh1+ {[%clk 0:00:19.5]} 83. Kg2 {[%clk 0:00:11]} 83... Rh2+ {[%clk
0:00:19.2]} 84. Kf1 {[%clk 0:00:11.7]} 84... Rh1+ {[%clk 0:00:19.1]} 85. Kg2
{[%clk 0:00:12.3]} 85... Rh2+ {[%clk 0:00:19.4]} 86. Kg1 {[%clk 0:00:12.9]}
86... Rh4 {[%clk 0:00:19.2]} 87. Kg2 {[%clk 0:00:13.5]} 87... Rh2+ {[%clk
0:00:19.2]} 1/2-1/2